Workbook

Sheet Disclaimer
B10: 1. Who is the author of this Excel file document?
B11: The present file was developed by the two directors of the German Institute of Corporate Finance (GICF),
B12: Prof. Dr. Dr. Joachim Häcker and Prof. Dr. Dr. Dietmar Ernst."
B13: The German Institute of Corporate Finance (GICF) is an institute of Nürtingen-Geislingen University in cooperation with Deutsche Börse AG. The GICF awards the title Certified Financial Modeler.
B17: 2. Is this Excel file protected by the German Copyright Act (UrhG)?
B18: Pursuant to paragraph 1 UrhG (Act on Copyright and Related Rights (Copyright Act)), the authors of scientific works profit from protection of their works according to this law.
B19: Pursuant to paragraph 2 section 2 UrhG, a work is given provided it is a personal and intellectual creation. Paragraph 69a UrhG is applicable to software such as this Excel file.
B20: Thus the Copyright Act is applicable to software. Any computer program that is statistically unique is protected.
B21: All these requirements are met by this Excel file and it is therefore protected by the Copyright Act.
B24: 3. Am I liable to prosecution if I pass on this Excel file to third parties or reuse it for my work?
B25: You obtain this Excel file when registering for the Certified Financial Modeler program.
B26: This Excel file is for you and your personal use only.
B27: Should you pass on this Excel file to third parties, use parts or the entire tool without prior authorisation without signalling such a use and referring to the author GICF,
B28: you are in contravention of applicable copyright law and are liable to prosecution. You then have to take into account that from the trade marks stated under item 1, claims will be made and you will be prosecuted.
B30: The unauthorised use of the works protected under the Copyright Act can be punished with three years of imprisonment pursuant to paragraph 106 UrhG.
B31: According to paragraph 108b UrhG unauthorised interventions in technical protection measures and information required for exercising this right can be punished with one year of imprisonment.
B32: The removal of any copyright protection of this Excel file counts as such an act.
B33: The sentencing can be increased to three years (unauthorised interventions into technical safety measures) and five years (unauthorised commercial use) in case of commercial use.
B35: 4. Disclaimer
B36: The contents were created with the greatest possible care. However, the authors and publishers assume no responsibility for the accuracy, completeness, quality and timeliness of the content provided.
B37: Liability claims against the authors and publishers, which refer to material or immaterial nature, which were caused by the use or disuse of the information provided or by the use of incorrect and incomplete information,
B38: are excluded in principle, provided that there is no demonstrably intentional or grossly negligent fault on the part of the authors. The user is at his own risk.

Sheet Menu and Documentation
B2: Menu | E2: Documentation
B3: This module contains the following applied examples: | F3: Project name: | G3: Module: Investment and Financing - Section Investment
B4: (Click on the hyperlink of the heading to directly navigate to the worksheet.) | C4: Color of the Worksheets | F4: Financial modeler: | G4: The team behind the book Financial Modeling
F5: File name: | G5: Investment
B6: Executive Summary | F6: Lst changed: | G6: December 2017
B7: Assumptions Static Investment Valuation | F7: Contents of change: | G7: Creating the final version
B8: Assumptions Dynamic Investment Valuation
F9: Task and aim: | G9: This file contains the applied examples from the module Investment and Financing for the section on Investments. The structure of the Excel file is in line with the general process for conducting an investment analysis.
B10: Static Investment Valuation
B11: Cost Comparison Method
B12: Profit Comparison Method
B13: Average Rate of Return Method | G13: All calculations are done directly in Excel. This allows the user to trace all calculations.
B14: Static Payback Period Method
B15: Comparison (1)
F16: User instructions: | G16: Use the financial models as you work with the textbook. The individual steps are separated into small units on different worksheets.
B17: Dynamic Investment Valuation
B18: Net Present Value Method | G18: Um alle Elemente des Financial Models verwenden zu können, aktivieren Sie bitte die Makros über den Auswahlpunkt Optionen. Ausführliche Informationen finden Sie in dem Zellenkommentar.
B19: Internal Rate of Return | F19: Activating macros: | G19: To be able to use all elements of the financial model, please activate the macros via the menu choice Options. Comprehensive information is contained in the cell commentary.
B20: Annuity Method
B21: Comparison (2)
F23: Activating iterations: | G23: Activate in addition the iterative calculatios via the ribbon Ü Excel Options Ü Formulas Ü Options for Calculations.
F27: Rules for choice of colors: | G27: Input cells
G28: Calculations and output (grey)
G29: Mixed cells (formulas with fixed numerical values and cell references)

Sheet Executive Summary
B2: Static Investment Valuation
B5: Method | C5: Machine 1 | D5: Machine 2 | E5: Decision
B7: Cost comparison method | C7: ='Comparison (1)'!C7 -> 54250 | D7: ='Comparison (1)'!D7 -> 56650 | E7: ='Comparison (1)'!E7 -> Machine 1
B8: Profit comparison method | C8: ='Comparison (1)'!C8 -> 29750 | D8: ='Comparison (1)'!D8 -> 29350 | E8: ='Comparison (1)'!E8 -> Machine 1
B9: Profitability calculation | C9: ='Comparison (1)'!C9 -> 0.5407407407 | D9: ='Comparison (1)'!D9 -> 0.7311827957 | E9: ='Comparison (1)'!E9 -> Machine 2
B10: Static amortization method | C10: ='Comparison (1)'!C10 -> 2.146596859 | D10: ='Comparison (1)'!D10 -> 1.747343566 | E10: ='Comparison (1)'!E10 -> Machine 2
B19: Dynamic Investment Valuation
B22: Investments of different | C22: Investment A | D22: Investment B | E22: Investment C | F22: Decision
B23: volume and duration
B24: Present value | C24: ='Comparison (2)'!C7 -> 40.79639369 | D24: ='Comparison (2)'!D7 -> 29.75206612 | E24: ='Comparison (2)'!E7 -> 24.34259955 | F24: ='Comparison (2)'!F7 -> Investment A
B25: Internal rate of return | C25: ='Comparison (2)'!C8 -> 0.1943770996 | D25: ='Comparison (2)'!D8 -> 0.3104686356 | E25: ='Comparison (2)'!E8 -> 0.2337519285 | F25: ='Comparison (2)'!F8 -> Investment B
B26: Annuity | C26: ='Comparison (2)'!C9 -> 16.40483384 | D26: ='Comparison (2)'!D9 -> 11.96374622 | E26: ='Comparison (2)'!E9 -> 9.788519637 | F26: ='Comparison (2)'!F9 -> Investment A

Sheet Assumptions Stat. Inv. Calc.
B2: Assumptions Investment Object
B4: Basic data | E4: Machine 1 | F4: Machine 2
B6: Investment in depreciable capital equipment (in €) | E6: 100000 | F6: 70000
B8: Useful life (in years) | E8: 5 | F8: 5
B10: Residual value of equipment (in €) | E10: 10000 | F10: 5000
B12: Investment in non-depreciable capital equipment (in €) | E12: 12500 | F12: 9000
B14: Planned utilization (units per annum) | E14: 20000 | F14: 20000
B16: Sales revenue per unit (in €) | E16: 4.2 | F16: 4.3
B18: Fixed costs excluding cost of capital (in €) | E18: 7500 | F18: 5000
B20: Imputed interest rate (% p.a.) | E20: 0.1 | F20: 0.1
B22: Wages and incidental wage costs (€/unit) | E22: 0.8 | F22: 1.2
B24: Raw, auxiliary and operating materials (€/unit) | E24: 0.2 | F24: 0.2
B26: Other variable costs (€/unit) | E26: 0.1 | F26: 0.3
B29: Planned Utilization
B30: 0
B31: 1000
B32: 2000
B33: 3000
B34: 4000
B35: 5000
B36: 6000
B37: 7000
B38: 8000
B39: 9000
B40: 10000
B41: 11000
B42: 12000
B43: 13000
B44: 14000
B45: 15000
B46: 16000
B47: 17000
B48: 18000
B49: 19000
B50: 20000
B51: 21000
B52: 22000
B53: 23000
B54: 24000
B55: 25000
B56: 26000
B57: 27000
B58: 28000
B59: 29000
B60: 30000

Sheet Assumptions Dyn. Inv. Calc.
B2: Project assumptions
E3: t0 | F3: t1 | G3: t2 | H3: t3 | I3: t4 | J3: t5
B4: Year | E4: 0 | F4: =E4+1 -> 1 | G4: =F4+1 -> 2 | H4: 3 | I4: 4 | J4: 5
B5: Investment in capital equipment | E5: 1200
B6: Residual value of the equipment at the end of year 5 (in € thousand) | J6: 200
B7: Useful life of the equipment (years) | E7: 5
B8: Investment in raw, auxiliary and operating materials (in € thousand) | E8: 300
B9: Sales volume | E9: 500 | F9: 600 | G9: 600 | H9: 600 | I9: 600 | J9: 600
B10: Sales price per unit (€/unit) | F10: 5 | G10: 5 | H10: 5 | I10: 5 | J10: 5
B11: Variable costs per unit (€/unit) | F11: 3 | G11: 3 | H11: 3 | I11: 3 | J11: 3
B12: Fixed costs excluding depreciation (in.€ thousand) | F12: 500 | G12: 500 | H12: 500 | I12: 500 | J12: 500
B13: Depreciation, linear over useful life (in € thousand) | F13: =($E$5-$J$6)/$E$7 -> 200 | G13: =($E$5-$J$6)/$E$7 -> 200 | H13: =($E$5-$J$6)/$E$7 -> 200 | I13: =($E$5-$J$6)/$E$7 -> 200 | J13: =($E$5-$J$6)/$E$7 -> 200
B14: Relevant discount rate (% p.a.) | E14: 0.1 | F14: 0.1 | G14: 0.1 | H14: 0.1 | I14: 0.1 | J14: 0.1
B15: Tax rate (%) | F15: 0.4 | G15: 0.4 | H15: 0.4 | I15: 0.4 | J15: 0.4
B19: Investments of different volume and length
E20: t0 | F20: t1 | G20: t2 | H20: t3
B21: Year | E21: 0 | F21: 1 | G21: 2 | H21: 3
B22: Investment A | E22: -200 | F22: 50 | G22: 100 | H22: 150
B23: Investment B | E23: -100 | F23: 70 | G23: 80
B24: Investment C | E24: -100 | F24: 50 | G24: 50 | H24: 50
B25: Relevant discount rate | E25: 0.1

Sheet Cost Comparison Method
B2: Cost Comparison Method
B5: Underlying data | E5: Machine 1 | F5: Machine 2
B7: Investment in depreciating capital equipment (in €) | E7: ='Assumptions Stat. Inv. Calc. '!E6 -> 100000 | F7: ='Assumptions Stat. Inv. Calc. '!F6 -> 70000
B8: Useful life (in years) | E8: ='Assumptions Stat. Inv. Calc. '!E8 -> 5 | F8: ='Assumptions Stat. Inv. Calc. '!F8 -> 5
B9: Residual value of equipment (in €) | E9: ='Assumptions Stat. Inv. Calc. '!E10 -> 10000 | F9: ='Assumptions Stat. Inv. Calc. '!F10 -> 5000
B10: Investment in non-depreciating capital equipment (in €) | E10: ='Assumptions Stat. Inv. Calc. '!E12 -> 12500 | F10: ='Assumptions Stat. Inv. Calc. '!F12 -> 9000
B11: Average amount of capital tied up | E11: =E10+E9+(E7-E9)/2 -> 67500 | F11: =F10+F9+(F7-F9)/2 -> 46500
B12: Planned utilization (units per annum) | E12: ='Assumptions Stat. Inv. Calc. '!E14 -> 20000 | F12: ='Assumptions Stat. Inv. Calc. '!F14 -> 20000
B13: Fixed costs excluding cost of capital (in €) | E13: ='Assumptions Stat. Inv. Calc. '!E18 -> 7500 | F13: ='Assumptions Stat. Inv. Calc. '!F18 -> 5000
B14: Relevant interest rate (% p.a.) | E14: ='Assumptions Stat. Inv. Calc. '!E20 -> 0.1 | F14: ='Assumptions Stat. Inv. Calc. '!F20 -> 0.1
B15: Wages and incidental wage costs (€/unit) | E15: ='Assumptions Stat. Inv. Calc. '!E22 -> 0.8 | F15: ='Assumptions Stat. Inv. Calc. '!F22 -> 1.2
B16: Raw, auxiliary and operating materials (€/unit) | E16: ='Assumptions Stat. Inv. Calc. '!E24 -> 0.2 | F16: ='Assumptions Stat. Inv. Calc. '!F24 -> 0.2
B17: Other variable costs (€/unit) | E17: ='Assumptions Stat. Inv. Calc. '!E26 -> 0.1
B19: Fixed costs and cost of capital | E19: Machine 1 | F19: Machine 2
B21: Fixed costs excluding cost of capital | E21: =E13 -> 7500 | F21: =F13 -> 5000
B22: Depreciation | E22: =(E7-E9)/E8 -> 18000 | F22: =(F7-F9)/F8 -> 13000
B23: Implied interest payment | E23: =E11*E14 -> 6750 | F23: =F11*F14 -> 4650
B25: Sum of fixed costs | E25: =E21+E22+E23 -> 32250 | F25: =F21+F22+F23 -> 22650
B27: Variable costs | E27: Machine 1 | F27: Machine 2
B29: Wages and incidental wage costs | E29: =E12*E15 -> 16000 | F29: =F12*F15 -> 24000
B30: Raw, auxiliary and operating materials | E30: =E12*E16 -> 4000 | F30: =F12*F16 -> 4000
B31: Other variable costs | E31: =E12*E17 -> 2000 | F31: 6000
B33: Sum of variable costs | E33: =E29+E30+E31 -> 22000 | F33: =F29+F30+F31 -> 34000
B35: Total cost | E35: Machine 1 | F35: Machine 2
B37: Total cost | E37: =E25+E33 -> 54250 | F37: =F25+F33 -> 56650
B38: Per unit cost | E38: =E37/E12 -> 2.7125 | F38: =F37/F12 -> 2.8325
B40: Results for the cost comparison method | E40: Machine 1 | F40: Machine 2
B42: Decision criterion: Alternative with lower
B43: Total cost | E43: =IF(E37<F37,E37,"") -> 54250 | F43: =IF(F37<E37,F37,"") -> 
B44: Per unit cost | E44: =IF(E38<F38,E38,"") -> 2.7125 | F44: =IF(F38<E38,F38,"") -> 
B45: Decision | E45: =IF(E37<F37,"favorable","not favorable") -> favorable | F45: =IF(F37<E37,"favorable","not favorable") -> not favorable
B48: Determining the critical utilization level via comparison of total cost
E50: Machine 1 | F50: machine 2
B52: Total cost | E52: =E25 -> 32250 | F52: =F25 -> 22650
B53: Per unit cost | E53: =E33/E12 -> 1.1 | F53: =F33/F12 -> 1.7
B55: Critical utilization level | E55: =(F52-E52)/(E53-F53) -> 16000
D58: Planned utilization | E58: Total cost Machine 1 | F58: Total cost Machine 2
D59: 0 | E59: =$E$53*D59+$E$52 -> 32250 | F59: =$F$53*D59+$F$52 -> 22650
D60: 1000 | E60: =$E$53*D60+$E$52 -> 33350 | F60: =$F$53*D60+$F$52 -> 24350
D61: =D60+$D$60 -> 2000 | E61: 34450 | F61: 26050
D62: =D61+$D$60 -> 3000 | E62: 35550 | F62: 27750
D63: 4000 | E63: 36650 | F63: 29450
D64: 5000 | E64: 37750 | F64: 31150
D65: 6000 | E65: 38850 | F65: 32850
D66: 7000 | E66: 39950 | F66: 34550
D67: 8000 | E67: 41050 | F67: 36250
D68: 9000 | E68: 42150 | F68: 37950
D69: 10000 | E69: 43250 | F69: 39650
D70: 11000 | E70: 44350 | F70: 41350
D71: 12000 | E71: 45450 | F71: 43050
D72: 13000 | E72: 46550 | F72: 44750
D73: 14000 | E73: 47650 | F73: 46450
D74: 15000 | E74: 48750 | F74: 48150
D75: 16000 | E75: 49850 | F75: 49850
D76: 17000 | E76: 50950 | F76: 51550
D77: 18000 | E77: 52050 | F77: 53250
D78: 19000 | E78: 53150 | F78: 54950
D79: 20000 | E79: 54250 | F79: 56650
D80: 21000 | E80: 55350 | F80: 58350
D81: 22000 | E81: 56450 | F81: 60050
D82: 23000 | E82: 57550 | F82: 61750
D83: 24000 | E83: 58650 | F83: 63450
D84: 25000 | E84: 59750 | F84: 65150
D85: 26000 | E85: 60850 | F85: 66850
D86: 27000 | E86: 61950 | F86: 68550
D87: 28000 | E87: 63050 | F87: 70250
D88: 29000 | E88: 64150 | F88: 71950
D89: 30000 | E89: 65250 | F89: 73650

Sheet Profit Comparison Method
B2: Profit Comparison Method
B5: Underlying data | E5: Machine 1 | F5: Machine 2
B7: Investment in depreciable capital equipment (in €) | E7: ='Assumptions Stat. Inv. Calc. '!E6 -> 100000 | F7: ='Assumptions Stat. Inv. Calc. '!F6 -> 70000
B8: Useful life (in years) | E8: ='Assumptions Stat. Inv. Calc. '!E8 -> 5 | F8: ='Assumptions Stat. Inv. Calc. '!F8 -> 5
B9: Residual value of equipment (in €) | E9: ='Assumptions Stat. Inv. Calc. '!E10 -> 10000 | F9: ='Assumptions Stat. Inv. Calc. '!F10 -> 5000
B10: Investment in non-depreciable capital equipment (in €) | E10: ='Assumptions Stat. Inv. Calc. '!E12 -> 12500 | F10: ='Assumptions Stat. Inv. Calc. '!F12 -> 9000
B11: Average amount of capital tied up | E11: =E10+E9+(E7-E9)/2 -> 67500 | F11: =F10+F9+(F7-F9)/2 -> 46500
B12: Planned utilization (units per annum) | E12: ='Assumptions Stat. Inv. Calc. '!E14 -> 20000 | F12: ='Assumptions Stat. Inv. Calc. '!F14 -> 20000
B13: Sales revenue per unit (in €) | E13: ='Assumptions Stat. Inv. Calc. '!E16 -> 4.2 | F13: ='Assumptions Stat. Inv. Calc. '!F16 -> 4.3
B14: Fixed costs excluding cost of capital (in €) | E14: ='Assumptions Stat. Inv. Calc. '!E18 -> 7500 | F14: ='Assumptions Stat. Inv. Calc. '!F18 -> 5000
B15: Relevant interest rate (% p.a.) | E15: ='Assumptions Stat. Inv. Calc. '!E20 -> 0.1 | F15: ='Assumptions Stat. Inv. Calc. '!F20 -> 0.1
B16: Wages and incidental wage costs (€/unit) | E16: ='Assumptions Stat. Inv. Calc. '!E22 -> 0.8 | F16: ='Assumptions Stat. Inv. Calc. '!F22 -> 1.2
B17: Raw, auxiliary and operating materials (€/unit) | E17: ='Assumptions Stat. Inv. Calc. '!E24 -> 0.2 | F17: ='Assumptions Stat. Inv. Calc. '!F24 -> 0.2
B18: Other variable costs (€/unit) | E18: ='Assumptions Stat. Inv. Calc. '!E26 -> 0.1 | F18: ='Assumptions Stat. Inv. Calc. '!F26 -> 0.3
B20: Fixed costs and cost of capital | E20: Machine 1 | F20: Machine 2
B22: Fixed costs excluding cost of capital | E22: =E14 -> 7500 | F22: =F14 -> 5000
B23: Depreciation | E23: =(E7-E9)/E8 -> 18000 | F23: =(F7-F9)/F8 -> 13000
B24: Average interest payment | E24: =E11*E15 -> 6750 | F24: =F11*F15 -> 4650
B26: Sum of fixed costs | E26: =E22+E23+E24 -> 32250 | F26: =F22+F23+F24 -> 22650
B28: Variable costs | E28: Machine 1 | F28: Machine 2
B30: Wages and incidental wage costs | E30: =E12*E16 -> 16000 | F30: =F12*F16 -> 24000
B31: Raw, auxiliary and operating materials | E31: =E12*E17 -> 4000 | F31: =F12*F17 -> 4000
B32: Other variable costs | E32: =E12*E18 -> 2000 | F32: =F12*F18 -> 6000
B34: Sum of variable costs | E34: =E30+E31+E32 -> 22000 | F34: =F30+F31+F32 -> 34000
B36: Sales revenue | E36: Machine 1 | F36: Machine 2
B38: Sales revenue | E38: =E12*E13 -> 84000 | F38: =F12*F13 -> 86000
B40: Profit | E40: Machine 1 | F40: Machine 2
B42: Total profit = Revenue - Total cost | E42: =E38-E26-E34 -> 29750 | F42: =F38-F26-F34 -> 29350
B43: Profit per unit = Total profit/Planned utilization | E43: =E42/E12 -> 1.4875 | F43: =F42/F12 -> 1.4675
B45: Total return | E45: Machine 1 | F45: Machine 2
B47: Decision criterion: Alternative with
B48: higher total profit | E48: =IF(E42>F42,E42,"") -> 29750 | F48: =IF(F42>E42,F38,"") -> 
B49: higher profit per unit | E49: =IF(E43>F43,E43,"") -> 1.4875 | F49: =IF(F43>E43,F39,"") -> 
B50: Decision | E50: =IF(E42>F42,"favorable","not favorable") -> favorable | F50: =IF(F42>E42,"favorabe","not favorable") -> not favorable
B53: Determining the critical utilization level by comparing profits
E55: Machine 1 | F55: Machine 2
B57: Fixed costs | E57: =E26 -> 32250 | F57: =F26 -> 22650
B58: Revenue per unit | E58: =E13 -> 4.2 | F58: =F13 -> 4.3
B59: Variable costs per unit | E59: =E34/E12 -> 1.1 | F59: =F34/F12 -> 1.7
B60: Revenue per unit minus variable costs per unit | E60: =E58-E59 -> 3.1 | F60: =F58-F59 -> 2.6
B62: Critical utilization level | E62: =(E57-F57)/(E60-F60) -> 19200
D65: Utilization | E65: Total profit Machine 1 | F65: Total profit Machine 2
D66: 0 | E66: =$E$60*D66-$E$57 -> -32250 | F66: =$F$60*D66-$F$57 -> -22650
D67: 1000 | E67: =$E$60*D67-$E$57 -> -29150 | F67: =$F$60*D67-$F$57 -> -20050
D68: 2000 | E68: -26050 | F68: -17450
D69: 3000 | E69: -22950 | F69: -14850
D70: 4000 | E70: -19850 | F70: -12250
D71: 5000 | E71: -16750 | F71: -9650
D72: 6000 | E72: -13650 | F72: -7050
D73: 7000 | E73: -10550 | F73: -4450
D74: 8000 | E74: -7450 | F74: -1850
D75: 9000 | E75: -4350 | F75: 750
D76: 10000 | E76: -1250 | F76: 3350
D77: 11000 | E77: 1850 | F77: 5950
D78: 12000 | E78: 4950 | F78: 8550
D79: 13000 | E79: 8050 | F79: 11150
D80: 14000 | E80: 11150 | F80: 13750
D81: 15000 | E81: 14250 | F81: 16350
D82: 16000 | E82: 17350 | F82: 18950
D83: 17000 | E83: 20450 | F83: 21550
D84: 18000 | E84: 23550 | F84: 24150
D85: 19000 | E85: 26650 | F85: 26750
D86: 20000 | E86: 29750 | F86: 29350
D87: 21000 | E87: 32850 | F87: 31950
D88: 22000 | E88: 35950 | F88: 34550
D89: 23000 | E89: 39050 | F89: 37150
D90: 24000 | E90: 42150 | F90: 39750
D91: 25000 | E91: 45250 | F91: 42350
D92: 26000 | E92: 48350 | F92: 44950
D93: 27000 | E93: 51450 | F93: 47550
D94: 28000 | E94: 54550 | F94: 50150
D95: 29000 | E95: 57650 | F95: 52750
D96: 30000 | E96: 60750 | F96: 55350

Sheet Average Rate of Return Method
B2: Average Rate of Return Method
B5: Underlying data | E5: Machine 1 | F5: Machine 2
B7: Investment in depreciating capital equipment (in €) | E7: ='Assumptions Stat. Inv. Calc. '!E6 -> 100000 | F7: ='Assumptions Stat. Inv. Calc. '!F6 -> 70000
B8: Useful life (in years) | E8: ='Assumptions Stat. Inv. Calc. '!E8 -> 5 | F8: ='Assumptions Stat. Inv. Calc. '!F8 -> 5
B9: Residual value of equipment (in €) | E9: ='Assumptions Stat. Inv. Calc. '!E10 -> 10000 | F9: ='Assumptions Stat. Inv. Calc. '!F10 -> 5000
B10: Investment in non-depreciating capital equipment (in €) | E10: ='Assumptions Stat. Inv. Calc. '!E12 -> 12500 | F10: ='Assumptions Stat. Inv. Calc. '!F12 -> 9000
B11: Average amount of capital tied up | E11: =E10+E9+(E7-E9)/2 -> 67500 | F11: =F10+F9+(F7-F9)/2 -> 46500
B12: Planned utilization (units per annum) | E12: ='Assumptions Stat. Inv. Calc. '!E14 -> 20000 | F12: ='Assumptions Stat. Inv. Calc. '!F14 -> 20000
B13: Sales revenue per unit (in €) | E13: ='Assumptions Stat. Inv. Calc. '!E16 -> 4.2 | F13: ='Assumptions Stat. Inv. Calc. '!F16 -> 4.3
B14: Fixed costs excluding cost of capital (in €) | E14: ='Assumptions Stat. Inv. Calc. '!E18 -> 7500 | F14: ='Assumptions Stat. Inv. Calc. '!F18 -> 5000
B15: Relevant interest rate (% p.a.) | E15: ='Assumptions Stat. Inv. Calc. '!E20 -> 0.1 | F15: ='Assumptions Stat. Inv. Calc. '!F20 -> 0.1
B16: Wages and incidental wage costs (€/unit) | E16: ='Assumptions Stat. Inv. Calc. '!E22 -> 0.8 | F16: ='Assumptions Stat. Inv. Calc. '!F22 -> 1.2
B17: Raw, auxiliary and operating materials (€/unit) | E17: ='Assumptions Stat. Inv. Calc. '!E24 -> 0.2 | F17: ='Assumptions Stat. Inv. Calc. '!F24 -> 0.2
B18: Other variable costs (€/unit) | E18: ='Assumptions Stat. Inv. Calc. '!E26 -> 0.1 | F18: ='Assumptions Stat. Inv. Calc. '!F26 -> 0.3
B20: Fixed costs and cost of capital | E20: Machine 1 | F20: Machine 2
B22: Fixed costs excluding cost of capital | E22: =E14 -> 7500 | F22: =F14 -> 5000
B23: Depreciation | E23: =(E7-E9)/E8 -> 18000 | F23: =(F7-F9)/F8 -> 13000
B24: Implied interest payment | E24: =E11*E15 -> 6750 | F24: =F11*F15 -> 4650
B26: Sum of fixed costs | E26: =E22+E23+E24 -> 32250 | F26: =F22+F23+F24 -> 22650
B28: Variable costs | E28: Machine 1 | F28: Machine 2
B30: Wages and incidental wage costs | E30: =E12*E16 -> 16000 | F30: =F12*F16 -> 24000
B31: Raw, auxiliary and operating materials | E31: =E12*E17 -> 4000 | F31: =F12*F17 -> 4000
B32: Other variable costs | E32: =E12*E18 -> 2000 | F32: =F12*F18 -> 6000
B34: Sum of variable costs | E34: =E30+E31+E32 -> 22000 | F34: =F30+F31+F32 -> 34000
B36: Sales revenue | E36: Machine 1 | F36: Machine 2
B38: Sales revenue | E38: =E12*E13 -> 84000 | F38: =F12*F13 -> 86000
B40: Profit | E40: Machine 1 | F40: Machine 2
B42: Total profit = Revenue - Total cost | E42: =E38-E26-E34 -> 29750 | F42: =F38-F26-F34 -> 29350
B43: Earnings before interest = Profit + Interest | E43: =E42+E24 -> 36500 | F43: =F42+F24 -> 34000
B45: Total return | E45: Machine 1 | F45: Machine 2
B47: Total return on capital = Earnings before interest/ Average volume of capital tied up | E47: =E43/E11 -> 0.5407407407 | F47: =F43/F11 -> 0.7311827957
B49: Result | E49: Machine 1 | F49: Machine 2
B51: Total return on capital = Earnings before interest/ Average volume of capital tied up | E51: =IF(E47>F47,E47,"") ->  | F51: =IF(F47>E47,F47,"") -> 0.7311827957
B52: Decision | E52: =IF(E47>F47,"favorable","not favorable") -> not favorable | F52: =IF(F47>E47,"favorable","not favorable") -> favorable

Sheet Static Payback Period Method
B2: Static Payback Period Method
B5: Underlying data | E5: Machine 1 | F5: Machine 2
B7: Investment in depreciable capital equipment (in €) | E7: ='Assumptions Stat. Inv. Calc. '!E6 -> 100000 | F7: ='Assumptions Stat. Inv. Calc. '!F6 -> 70000
B8: Useful life (in years) | E8: ='Assumptions Stat. Inv. Calc. '!E8 -> 5 | F8: ='Assumptions Stat. Inv. Calc. '!F8 -> 5
B9: Residual value of equipment (in €) | E9: ='Assumptions Stat. Inv. Calc. '!E10 -> 10000 | F9: ='Assumptions Stat. Inv. Calc. '!F10 -> 5000
B10: Investment in non-depreciable capital equipment (in €) | E10: ='Assumptions Stat. Inv. Calc. '!E12 -> 12500 | F10: ='Assumptions Stat. Inv. Calc. '!F12 -> 9000
B11: Average amount of capital tied up | E11: =E10+E9+(E7-E9)/2 -> 67500 | F11: =F10+F9+(F7-F9)/2 -> 46500
B12: Planned utilization (units per annum) | E12: ='Assumptions Stat. Inv. Calc. '!E14 -> 20000 | F12: ='Assumptions Stat. Inv. Calc. '!F14 -> 20000
B13: Sales revenue per unit (in €) | E13: ='Assumptions Stat. Inv. Calc. '!E16 -> 4.2 | F13: ='Assumptions Stat. Inv. Calc. '!F16 -> 4.3
B14: Fixed costs excluding cost of capital (in €) | E14: ='Assumptions Stat. Inv. Calc. '!E18 -> 7500 | F14: ='Assumptions Stat. Inv. Calc. '!F18 -> 5000
B15: Relevant interest rate (% p.a.) | E15: ='Assumptions Stat. Inv. Calc. '!E20 -> 0.1 | F15: ='Assumptions Stat. Inv. Calc. '!F20 -> 0.1
B16: Wages and incidental wage costs (€/unit) | E16: ='Assumptions Stat. Inv. Calc. '!E22 -> 0.8 | F16: ='Assumptions Stat. Inv. Calc. '!F22 -> 1.2
B17: Raw, auxiliary and operating materials (€/unit) | E17: ='Assumptions Stat. Inv. Calc. '!E24 -> 0.2 | F17: ='Assumptions Stat. Inv. Calc. '!F24 -> 0.2
B18: Other variable costs (€/unit) | E18: ='Assumptions Stat. Inv. Calc. '!E26 -> 0.1 | F18: ='Assumptions Stat. Inv. Calc. '!F26 -> 0.3
B20: Fixed costs and cost of capital | E20: Machine 1 | F20: Machine 2
B22: Fixed costs excluding cost of capital | E22: =E14 -> 7500 | F22: =F14 -> 5000
B23: Depreciation | E23: =(E7-E9)/E8 -> 18000 | F23: =(F7-F9)/F8 -> 13000
B24: Average interest payment | E24: =E11*E15 -> 6750 | F24: =F11*F15 -> 4650
B26: Sum of fixed costs | E26: =E22+E23+E24 -> 32250 | F26: =F22+F23+F24 -> 22650
B28: Variable costs | E28: Machine 1 | F28: Machine 2
B30: Wages and incidental wage costs | E30: =E12*E16 -> 16000 | F30: =F12*F16 -> 24000
B31: Raw, auxiliary and operating materials | E31: =E12*E17 -> 4000 | F31: =F12*F17 -> 4000
B32: Other variable costs | E32: =E12*E18 -> 2000 | F32: =F12*F18 -> 6000
B34: Sum of variable costs | E34: =E30+E31+E32 -> 22000 | F34: =F30+F31+F32 -> 34000
B36: Sales revenue | E36: Machine 1 | F36: Machine 2
B38: Sales revenue | E38: =E12*E13 -> 84000 | F38: =F12*F13 -> 86000
B40: Profit | E40: Machine 1 | F40: Machine 2
B42: Total profit = Revenue - Total cost | E42: =E38-E26-E34 -> 29750 | F42: =F38-F26-F34 -> 29350
B43: Average cash flow surpluses = Profit + "Earned amortization" | E43: =E42+E23 -> 47750 | F43: =F42+F23 -> 42350
B45: Payback period | E45: Machine 1 | F45: Machine 2
B47: Payback period = Capital tied-up/Average cash flow surpluses | E47: =(E7+E10-E9)/E43 -> 2.146596859 | F47: =(F7+F10-F9)/F43 -> 1.747343566
B49: Result | E49: Machine 1 | F49: Machine 2
B51: Payback period = Capital tied-up/Average cash flow surpluses | E51: =IF(E47<F47,E47,"") ->  | F51: =IF(F47<E47,F47,"") -> 1.747343566
B52: Decision | E52: =IF(E47<F47,"favorable","not favorable") -> not favorable | F52: =IF(F47<E47,"favorable","not favorable") -> favorable

Sheet Comparison (1)
B2: Static Methods of Investment Valuation
B5: Method | C5: Machine 1 | D5: Machine 2 | E5: Decision
B7: Cost comparison method | C7: ='Cost Comparison Method'!E37 -> 54250 | D7: ='Cost Comparison Method'!F37 -> 56650 | E7: =IF(C7<D7,"Machine 1","Machine 2") -> Machine 1
B8: Profit comparison method | C8: ='Profit Comparison Method'!E42 -> 29750 | D8: ='Profit Comparison Method'!F42 -> 29350 | E8: =IF(C8>D8,"Machine 1","Machine 2") -> Machine 1
B9: Average rate of return method | C9: ='Average Rate of Return Method'!E47 -> 0.5407407407 | D9: ='Average Rate of Return Method'!F47 -> 0.7311827957 | E9: =IF(C9>D9,"Machine 1","Machine 2") -> Machine 2
B10: Static payback period method | C10: ='Static Payback Period Method'!E47 -> 2.146596859 | D10: ='Static Payback Period Method'!F47 -> 1.747343566 | E10: =IF(C10<D10,"Machine 1","Machine 2") -> Machine 2

Sheet Net Present Value Method
B2: Net Present Value Method
B5: Cash flow calculations
E6: t0 | F6: t1 | G6: t2 | H6: t3 | I6: t4 | J6: t5
B7: Investment in capital equipment | E7: ='Assumptions Dyn. Inv. Calc.'!E5 -> 1200
B8: Investment in current assets | E8: ='Assumptions Dyn. Inv. Calc.'!E8 -> 300
B9: Investment amount | E9: =E7+E8 -> 1500
B10: Sales volume | F10: ='Assumptions Dyn. Inv. Calc.'!E9 -> 500 | G10: ='Assumptions Dyn. Inv. Calc.'!F9 -> 600 | H10: ='Assumptions Dyn. Inv. Calc.'!G9 -> 600 | I10: ='Assumptions Dyn. Inv. Calc.'!H9 -> 600 | J10: ='Assumptions Dyn. Inv. Calc.'!I9 -> 600
B11: Price per unit | F11: ='Assumptions Dyn. Inv. Calc.'!F10 -> 5 | G11: ='Assumptions Dyn. Inv. Calc.'!G10 -> 5 | H11: ='Assumptions Dyn. Inv. Calc.'!H10 -> 5 | I11: ='Assumptions Dyn. Inv. Calc.'!I10 -> 5 | J11: ='Assumptions Dyn. Inv. Calc.'!J10 -> 5
B12: Revenues | F12: =F10*F11 -> 2500 | G12: =G10*G11 -> 3000 | H12: 3000 | I12: 3000 | J12: 3000
B13: Variable costs per unit | F13: =-'Assumptions Dyn. Inv. Calc.'!F11 -> -3 | G13: =-'Assumptions Dyn. Inv. Calc.'!G11 -> -3 | H13: =-'Assumptions Dyn. Inv. Calc.'!H11 -> -3 | I13: =-'Assumptions Dyn. Inv. Calc.'!I11 -> -3 | J13: =-'Assumptions Dyn. Inv. Calc.'!J11 -> -3
B14: Variable costs per unit | F14: =F10*F13 -> -1500 | G14: =G10*G13 -> -1800 | H14: -1800 | I14: -1800 | J14: -1800
B15: Fixed costs (excluding depreciation) | F15: =-'Assumptions Dyn. Inv. Calc.'!F12 -> -500 | G15: =-'Assumptions Dyn. Inv. Calc.'!G12 -> -500 | H15: =-'Assumptions Dyn. Inv. Calc.'!H12 -> -500 | I15: =-'Assumptions Dyn. Inv. Calc.'!I12 -> -500 | J15: =-'Assumptions Dyn. Inv. Calc.'!J12 -> -500
B16: Depreciation | F16: =-'Assumptions Dyn. Inv. Calc.'!F13 -> -200 | G16: =-'Assumptions Dyn. Inv. Calc.'!G13 -> -200 | H16: =-'Assumptions Dyn. Inv. Calc.'!H13 -> -200 | I16: =-'Assumptions Dyn. Inv. Calc.'!I13 -> -200 | J16: =-'Assumptions Dyn. Inv. Calc.'!J13 -> -200
B18: Eearnings before taxes | F18: =F12+SUM(F14:F16) -> 300 | G18: =G12+SUM(G14:G16) -> 500 | H18: =H12+SUM(H14:H16) -> 500 | I18: 500 | J18: 500
B20: Taxes | F20: =-F18*'Assumptions Dyn. Inv. Calc.'!F15 -> -120 | G20: =-G18*'Assumptions Dyn. Inv. Calc.'!G15 -> -200 | H20: =-H18*'Assumptions Dyn. Inv. Calc.'!H15 -> -200 | I20: =-I18*'Assumptions Dyn. Inv. Calc.'!I15 -> -200 | J20: =-J18*'Assumptions Dyn. Inv. Calc.'!J15 -> -200
B22: Net profit | F22: =F18+F20 -> 180 | G22: =G18+G20 -> 300 | H22: =H18+H20 -> 300 | I22: 300 | J22: 300
B24: Depreciation | F24: ='Assumptions Dyn. Inv. Calc.'!F13 -> 200 | G24: ='Assumptions Dyn. Inv. Calc.'!G13 -> 200 | H24: ='Assumptions Dyn. Inv. Calc.'!H13 -> 200 | I24: ='Assumptions Dyn. Inv. Calc.'!I13 -> 200 | J24: ='Assumptions Dyn. Inv. Calc.'!J13 -> 200
B25: Dispositions at book value | J25: ='Assumptions Dyn. Inv. Calc.'!J6 -> 200
B27: Cash flow | E27: =-E9 -> -1500 | F27: =F22+F24 -> 380 | G27: =G22+G24 -> 500 | H27: =H22+H24 -> 500 | I27: =I22+I24 -> 500 | J27: =J22+J24+J25 -> 700
B31: Project analysis
E32: t0 | F32: t1 | G32: t2 | H32: t3 | I32: t4 | J32: t5
B33: Year | E33: ='Assumptions Dyn. Inv. Calc.'!E4 -> 0 | F33: ='Assumptions Dyn. Inv. Calc.'!F4 -> 1 | G33: ='Assumptions Dyn. Inv. Calc.'!G4 -> 2 | H33: ='Assumptions Dyn. Inv. Calc.'!H4 -> 3 | I33: ='Assumptions Dyn. Inv. Calc.'!I4 -> 4 | J33: ='Assumptions Dyn. Inv. Calc.'!J4 -> 5
B34: Discount rate | E34: ='Assumptions Dyn. Inv. Calc.'!E14 -> 0.1 | F34: ='Assumptions Dyn. Inv. Calc.'!F14 -> 0.1 | G34: ='Assumptions Dyn. Inv. Calc.'!G14 -> 0.1 | H34: ='Assumptions Dyn. Inv. Calc.'!H14 -> 0.1 | I34: ='Assumptions Dyn. Inv. Calc.'!I14 -> 0.1 | J34: ='Assumptions Dyn. Inv. Calc.'!J14 -> 0.1
B35: Discount factors | E35: =1/(1+E34)^E33 -> 1 | F35: =1/(1+F34)^F33 -> 0.9090909091 | G35: 0.826446281 | H35: 0.7513148009 | I35: 0.6830134554 | J35: 0.6209213231
B36: Present values | E36: =E27*E35 -> -1500 | F36: 345.4545455 | G36: 413.2231405 | H36: 375.6574005 | I36: 341.5067277 | J36: 434.6449261
B38: Net present value (calculation 1) | E38: =SUM(E36:J36) -> 410.4867402
B39: Net present value (calculation 2) | E39: =NPV(E34,F27:J27)+E27 -> 410.4867402
B41: Internal rate of return | E41: =IRR(E27:J27) -> 0.1932225957
B43: Annuity | E43: =PMT(E34,J33,-E38) -> 108.285368
B47: Financing plan I
E48: t0 | F48: t1 | G48: t2 | H48: t3 | I48: t4 | J48: t5
B49: Investment | E49: =E27 -> -1500 | F49: 380 | G49: 500 | H49: 500 | I49: 500 | J49: 700
B50: Loan | E50: =-E49 -> 1500
B51: Loan at the beginning of the year | F51: =E54 -> 1500 | G51: =F54 -> 1270 | H51: 897 | I51: 486.7 | J51: 35.37
B52: Interest payment | F52: =-(F51*'Assumptions Dyn. Inv. Calc.'!F14) -> -150 | G52: =-(G51*'Assumptions Dyn. Inv. Calc.'!G14) -> -127 | H52: =-(H51*'Assumptions Dyn. Inv. Calc.'!H14) -> -89.7 | I52: =-(I51*'Assumptions Dyn. Inv. Calc.'!I14) -> -48.67 | J52: =-(J51*'Assumptions Dyn. Inv. Calc.'!J14) -> -3.537
B53: Repayment | F53: =IF(F51-F52>F49,-(F49+F52),-F51) -> -230 | G53: -373 | H53: -410.3 | I53: =IF(I51-I52>I49,-(I49+I52),-I51) -> -451.33 | J53: =IF(J51-J52>J49,-(J49+J52),-J51) -> -35.37
B54: Loan at the end of the year | E54: =E50+E51+E53 -> 1500 | F54: =F50+F51+F53 -> 1270 | G54: =G51+G53 -> 897 | H54: 486.7 | I54: 35.37 | J54: 0
B55: Profit | F55: =F49+F52+F53 -> 0 | G55: =G49+G52+G53 -> 0 | H55: 0 | I55: 0 | J55: 661.093
B56: Present value | E56: =NPV('Assumptions Dyn. Inv. Calc.'!E14,'Net Present Value Method'!F55:J55) -> 410.4867402
B60: Financing plan II
E61: t0 | F61: t1 | G61: t2 | H61: t3 | I61: t4 | J61: t5
B62: Investment | E62: =E27-E38 -> -1910.48674 | F62: =F27 -> 380 | G62: =G27 -> 500 | H62: =H27 -> 500 | I62: =I27 -> 500 | J62: =J27 -> 700
B63: Loan | E63: =-E62 -> 1910.48674
B64: Loan at the beginning of the year | F64: =E67 -> 1910.48674 | G64: =F67 -> 1721.535414 | H64: 1393.688956 | I64: 1033.057851 | J64: 636.3636364
B65: Interest payment | F65: =-((F63+F64)*'Assumptions Dyn. Inv. Calc.'!F14) -> -191.048674 | G65: =-((G63+G64)*'Assumptions Dyn. Inv. Calc.'!G14) -> -172.1535414 | H65: =-((H63+H64)*'Assumptions Dyn. Inv. Calc.'!H14) -> -139.3688956 | I65: =-((I63+I64)*'Assumptions Dyn. Inv. Calc.'!I14) -> -103.3057851 | J65: =-((J63+J64)*'Assumptions Dyn. Inv. Calc.'!J14) -> -63.63636364
B66: Repayment | F66: =IF(F64-F65>F62,-(F62+F65),-F64) -> -188.951326 | G66: =IF(G64-G65>G62,-(G62+G65),-G64) -> -327.8464586 | H66: =IF(H64-H65>H62,-(H62+H65),-H64) -> -360.6311044 | I66: =IF(I64-I65>I62,-(I62+I65),-I64) -> -396.6942149 | J66: =IF(J64-J65>J62,-(J62+J65),-J64) -> -636.3636364
B67: Loan at the end of the year | E67: =E63+E64+E66 -> 1910.48674 | F67: =F63+F64+F66 -> 1721.535414 | G67: =G64+G66 -> 1393.688956 | H67: 1033.057851 | I67: 636.3636364 | J67: 0
B68: Profit | F68: =F62+F65+F66 -> 0 | G68: =G62+G65+G66 -> 0 | H68: 0 | I68: 0 | J68: 0

Sheet Internal Rate of Return
B2: Internal Rate of Return
B5: Financing plan I
E6: t0 | F6: t1 | G6: t2 | H6: t3 | I6: t4 | J6: t5
B7: Cash flows from the investment | E7: ='Net Present Value Method'!E27 -> -1500 | F7: ='Net Present Value Method'!F27 -> 380 | G7: ='Net Present Value Method'!G27 -> 500 | H7: ='Net Present Value Method'!H27 -> 500 | I7: ='Net Present Value Method'!I27 -> 500 | J7: ='Net Present Value Method'!J27 -> 700
B8: Internal rate of return | E8: =IRR(E7:J7) -> 0.1932225957
B14: Alternative rate i | C14: NPV
C15: =E7+NPV(E8,F7:J7) -> 6.577920431e-10
B16: 0 | C16: 1080
B17: 0.02 | C17: 920.2288574
B18: 0.04 | C18: 774.9119715
B19: 0.06 | C19: 642.4259802
B20: 0.08 | C20: 521.3605468
B21: 0.1 | C21: 410.4867402
B22: 0.12 | C22: 308.7306152
B23: 0.14 | C23: 215.1510594
B24: 0.16 | C24: 128.9211541
B25: 0.18 | C25: 49.31243846
B26: 0.2 | C26: -24.31841564
B27: 0.22 | C27: -92.54092447
B28: 0.24 | C28: -155.8604375
B29: 0.26 | C29: -214.7263792
B30: 0.28 | C30: -269.5393115
B31: 0.3 | C31: -320.6570013

Sheet Annuity Method
B2: Annuity Method
B5: Project analysis
E6: t0 | F6: t1 | G6: t2 | H6: t3 | I6: t4 | J6: t5
B7: Year | E7: ='Assumptions Dyn. Inv. Calc.'!E4 -> 0 | F7: ='Assumptions Dyn. Inv. Calc.'!F4 -> 1 | G7: ='Assumptions Dyn. Inv. Calc.'!G4 -> 2 | H7: ='Assumptions Dyn. Inv. Calc.'!H4 -> 3 | I7: ='Assumptions Dyn. Inv. Calc.'!I4 -> 4 | J7: ='Assumptions Dyn. Inv. Calc.'!J4 -> 5
B8: Discount rate | E8: ='Assumptions Dyn. Inv. Calc.'!E14 -> 0.1 | F8: ='Assumptions Dyn. Inv. Calc.'!F14 -> 0.1 | G8: ='Assumptions Dyn. Inv. Calc.'!G14 -> 0.1 | H8: ='Assumptions Dyn. Inv. Calc.'!H14 -> 0.1 | I8: ='Assumptions Dyn. Inv. Calc.'!I14 -> 0.1 | J8: ='Assumptions Dyn. Inv. Calc.'!J14 -> 0.1
B9: Discount factors | E9: =1/(1+E8)^E7 -> 1 | F9: =1/(1+F8)^F7 -> 0.9090909091 | G9: 0.826446281 | H9: 0.7513148009 | I9: 0.6830134554 | J9: 0.6209213231
B10: Cash flows from the investment | E10: ='Net Present Value Method'!E27 -> -1500 | F10: ='Net Present Value Method'!F27 -> 380 | G10: ='Net Present Value Method'!G27 -> 500 | H10: ='Net Present Value Method'!H27 -> 500 | I10: ='Net Present Value Method'!I27 -> 500 | J10: ='Net Present Value Method'!J27 -> 700
B11: Present values | E11: =E9*E10 -> -1500 | F11: =F9*F10 -> 345.4545455 | G11: 413.2231405 | H11: 375.6574005 | I11: 341.5067277 | J11: 434.6449261
B14: Financing plan III
E15: t0 | F15: t1 | G15: t2 | H15: t3 | I15: t4 | J15: t5
B16: Loan | E16: ='Assumptions Dyn. Inv. Calc.'!E5+'Assumptions Dyn. Inv. Calc.'!E8 -> 1500
B17: Loan at the beginning of the year | F17: =E21 -> 1500 | G17: =F21 -> 1254.303779 | H17: 984.0379355 | I17: 686.7455079 | J17: 359.7238374
B18: Annuity AF | F18: =PMT('Assumptions Dyn. Inv. Calc.'!$E$14,'Assumptions Dyn. Inv. Calc.'!$E$7,-$E$16,0,0) -> 395.6962212 | G18: =PMT('Assumptions Dyn. Inv. Calc.'!$E$14,'Assumptions Dyn. Inv. Calc.'!$E$7,-$E$16,0,0) -> 395.6962212 | H18: =PMT('Assumptions Dyn. Inv. Calc.'!$E$14,'Assumptions Dyn. Inv. Calc.'!$E$7,-$E$16,0,0) -> 395.6962212 | I18: =PMT('Assumptions Dyn. Inv. Calc.'!$E$14,'Assumptions Dyn. Inv. Calc.'!$E$7,-$E$16,0,0) -> 395.6962212 | J18: =PMT('Assumptions Dyn. Inv. Calc.'!$E$14,'Assumptions Dyn. Inv. Calc.'!$E$7,-$E$16,0,0) -> 395.6962212
B19: Interest | F19: =F17*'Assumptions Dyn. Inv. Calc.'!F14 -> 150 | G19: =G17*'Assumptions Dyn. Inv. Calc.'!G14 -> 125.4303779 | H19: =H17*'Assumptions Dyn. Inv. Calc.'!H14 -> 98.40379355 | I19: =I17*'Assumptions Dyn. Inv. Calc.'!I14 -> 68.67455079 | J19: =J17*'Assumptions Dyn. Inv. Calc.'!J14 -> 35.97238374
B20: Repayment | F20: =F18-F19 -> 245.6962212 | G20: =G18-G19 -> 270.2658433 | H20: 297.2924276 | I20: 327.0216704 | J20: 359.7238374
B21: Loan at the end of the year | E21: =E16+E17-E20 -> 1500 | F21: =F16+F17-F20 -> 1254.303779 | G21: =G16+G17-G20 -> 984.0379355 | H21: 686.7455079 | I21: 359.7238374 | J21: -4.547473509e-13
B22: Annuity AI | F22: =PMT('Assumptions Dyn. Inv. Calc.'!$E$14,'Assumptions Dyn. Inv. Calc.'!$E$7,-SUM($F$11:$J$11),0,0) -> 503.9815892 | G22: =PMT('Assumptions Dyn. Inv. Calc.'!$E$14,'Assumptions Dyn. Inv. Calc.'!$E$7,-SUM($F$11:$J$11),0,0) -> 503.9815892 | H22: =PMT('Assumptions Dyn. Inv. Calc.'!$E$14,'Assumptions Dyn. Inv. Calc.'!$E$7,-SUM($F$11:$J$11),0,0) -> 503.9815892 | I22: =PMT('Assumptions Dyn. Inv. Calc.'!$E$14,'Assumptions Dyn. Inv. Calc.'!$E$7,-SUM($F$11:$J$11),0,0) -> 503.9815892 | J22: =PMT('Assumptions Dyn. Inv. Calc.'!$E$14,'Assumptions Dyn. Inv. Calc.'!$E$7,-SUM($F$11:$J$11),0,0) -> 503.9815892
B23: Profit = AI - AF | F23: =F22-F18 -> 108.285368 | G23: =G22-G18 -> 108.285368 | H23: 108.285368 | I23: 108.285368 | J23: 108.285368

Sheet Comparison (2)
B2: Dynamic Methods of Investment Valuation
B5: Investments of different | C5: Investment A | D5: Investment B | E5: Investment C | F5: Decision
B6: volume and duration
B7: Present value | C7: =NPV('Assumptions Dyn. Inv. Calc.'!E25,'Assumptions Dyn. Inv. Calc.'!F22:H22)+'Assumptions Dyn. Inv. Calc.'!E22 -> 40.79639369 | D7: =NPV('Assumptions Dyn. Inv. Calc.'!E25,'Assumptions Dyn. Inv. Calc.'!F23:G23)+'Assumptions Dyn. Inv. Calc.'!E23 -> 29.75206612 | E7: =NPV('Assumptions Dyn. Inv. Calc.'!E25,'Assumptions Dyn. Inv. Calc.'!F24:H24)+'Assumptions Dyn. Inv. Calc.'!E24 -> 24.34259955 | F7: =INDEX($C$5:$E$6,1,MATCH(MAX(C7:E7),C7:E7,0)) -> Investment A
B8: Internal rate of return | C8: =IRR('Assumptions Dyn. Inv. Calc.'!E22:H22) -> 0.1943770996 | D8: =IRR('Assumptions Dyn. Inv. Calc.'!E23:G23) -> 0.3104686356 | E8: =IRR('Assumptions Dyn. Inv. Calc.'!E24:H24) -> 0.2337519285 | F8: =INDEX($C$5:$E$6,1,MATCH(MAX(C8:E8),C8:E8,0)) -> Investment B
B9: Annuity | C9: =PMT('Assumptions Dyn. Inv. Calc.'!$E$25,'Assumptions Dyn. Inv. Calc.'!$H$21,-C7) -> 16.40483384 | D9: =PMT('Assumptions Dyn. Inv. Calc.'!$E$25,'Assumptions Dyn. Inv. Calc.'!$H$21,-D7) -> 11.96374622 | E9: =PMT('Assumptions Dyn. Inv. Calc.'!$E$25,'Assumptions Dyn. Inv. Calc.'!$H$21,-E7) -> 9.788519637 | F9: Investment A
